{"text_format":"1","workbook":"xlsx","n_sheets":3,"sheets":["Instruccions","Reformulació Pressupost Bb","Resum Pressupost"],"not_rendered":{"charts":0,"images":4,"macros":1,"external_links":0,"defined_names":8,"comments":2,"pivot_tables":0},"unopened":[],"bounds":{"document_bytes":16777216,"sheet_cells":100000,"rows_first":2000,"rows_last":500,"rows_between":2000,"halvings":0,"cell_chars":16384,"cell_head_chars":4096},"cells_cut":0,"cells_raw":0,"read":"whole","date_system":"1900"}

{"sheet":"Instruccions","index":0,"n_rows":15,"n_cols":10,"rows_kept":15,"cut":false,"hidden":false,"merged":[[1,9,1,11],[2,2,2,17],[4,2,4,17],[14,1,15,15]]}
[]
[null,null,null,null,null,null,null,null,null,"Doc_basic3_pressup_reformulat_Bb INSTRUCCIONS"]
[null,null,"SUBVENCIONS DE L’AJUNTAMENT DE BARCELONA PER L’ENFORTIMENT DE L’ECONOMIA SOCIAL I SOLIDÀRIA I PER LA INTERCOOPERACIÓ EN L’ESTRATÈGIA #ESSBCN2030 - ENFORTIM L’ESS 2024"]
[]
[null,null,"Aspectes rellevants relacionats amb la reformulació"]
[]
[]
[]
[]
[null,"1. Emplenar la pestanya  \"Reformulació Pressupost\" amb les dades econòmiques del projecte:"]
[null,"1.1  Emplenar els quadres DADES BÀSIQUES-PREVISIÓ DE DESPESES DEL PROJECTE SUBVENCIONABLE INICIAL, amb les dades econòmiques de la proposta inicial amb subvenció atorgada."]
[null,"1.2  Emplenar els quadres DADES BÀSIQUES-PREVISIÓ DE DESPESES DEL PROJECTE REFORMULAT, amb les dades econòmiques de la proposta de reformulació."]
[null,"2. Revisar i emplenar la pestanya  \"Resum Pressupost\" amb les dades econòmiques del projecte:"]
[null,"3. Imprimir els fulls de les 2 pestanyes (Reformulació pressupost i Resum Pressupost). En format pdf."]
[null,"4. Si la sol·licitud es va presentar per via telemàtica, cal que registreu la documentació, telemàticament, com a tràmit específic, dins la convocatòria específica com annexió de documents addicionals i feu servir el número de tràmit que el sistema de registre us va donar en el moment de la presentació de la sol·licitud de la subvenció."]

{"sheet":"Reformulació Pressupost Bb","index":1,"n_rows":140,"n_cols":13,"rows_kept":140,"cut":false,"hidden":false,"merged":[[136,0,136,12],[137,0,137,12],[138,0,138,12],[139,0,139,12],[6,2,6,5],[18,5,18,8],[10,5,10,6],[19,0,19,3],[18,10,18,12],[122,0,122,12],[123,0,123,12],[124,0,124,12],[125,0,125,12],[18,0,18,3],[117,0,117,12],[118,0,118,12],[119,0,119,12],[120,0,120,12],[121,0,121,12],[1,1,1,12],[3,0,4,12],[131,0,131,12],[132,0,132,12],[133,0,133,12],[134,0,134,12],[135,0,135,12],[126,0,126,12],[127,0,127,12],[128,0,128,12],[129,0,129,12],[130,0,130,12]]}
[]
[null,"Reformulació pressupost Modalitat Bb"]
[]
["Programa de subvencions de l'Ajuntament de Barcelona per l'enfortiment de l'Economia Social i Solidària i per la intercooperació en l'Estratègia #ESSBCN2030 - ENFORTIM L’ESS 2024"]
[]
[]
[]
["DADES BÀSIQUES"]
["Nom de la persona jurídica",null,{"$f":"+IF(H9>Dadesbasiques[[#This Row],[Columna1]],\"ALERTA: La quantia de la subvenció atorgada no pot superar el 80% de la despesa total del projecte a subvencionar\", \" \")","v":" "},null,null,"  "]
["NIF de la persona jurídica",null,{"$f":"+IF(H10>Dadesbasiques[[#This Row],[Columna1]],\"ALERTA: La quantia de la subvenció atorgada no pot superar el 80% de la despesa total del projecte a subvencionar\", \" \")","v":" "}]
["Nom del projecte subvencionable",null,{"$f":"+IF(G11>Dadesbasiques[[#This Row],[Columna1]],\"ALERTA: La quantia de la subvenció atorgada no pot superar el 80% de la despesa total del projecte a subvencionar\", \" \")","v":" "},null,null,"DADES BÀSIQUES PROJECTE REFORMULAT"]
["Import total del projecte subvencionable",null,null,null,null,"Import total del projecte REFORMULAT"]
["Import imputable a la subvenció municipal",null,null,null,null,"Import imputable a la subvenció ATORGADA"]
["Import de l'aportació / Cofinançament de l'organització",{"$f":"+B12-B13","v":0},null,null,null,"Import de l'aportació / Cofinançament de l'organització",{"$f":"G12-G13","v":0}]
["% de l'import sol·licitat respecte el total del projecte subvencionable (*)",{"$f":"B13/B12","v":{"$error":"#DIV/0!"}},null,null,null,"% de l'import sol·licitat respecte el total del projecte subvencionat",{"$f":"G13/G12","v":{"$error":"#DIV/0!"}},{"$f":"+IF(G15>Dadesbasiques[[#This Row],[Columna1]],\"*Aquest percentatge ha de ser igual o menor al percentatge subvencionat inicialment.\",\" \")","v":{"$error":"#DIV/0!"}}]
["Data inici del projecte subvencionat (dd/mm/aaaa)",null,{"$f":"+IF(H16>Dadesbasiques[[#This Row],[Columna1]],\"ALERTA: La quantia de la subvenció atorgada no pot superar el 80% de la despesa total del projecte a subvencionar\", \" \")","v":" "}]
["Data fi del projecte subvencionat (dd/mm/aaaa)",null,{"$f":"+IF(H17>Dadesbasiques[[#This Row],[Columna1]],\"ALERTA: La quantia de la subvenció atorgada no pot superar el 80% de la despesa total del projecte a subvencionar\", \" \")","v":" "}]
[]
["PREVISIÓ DE DESPESES DEL PROJECTE SUBVENCIONABLE INICIAL",null,null,null,null,"PREVISIÓ DE DESPESES DEL PROJECTE REFORMULAT",null,null,null,null,"DIFERÈNCIA REFORMULACIÓ I PROJECTE INICIAL"]
[]
[]
["Partides","Import imputable a la subvenció municipal","Import de l'aportació / Cofinançament de l'organització","Import total del projecte",null,"Partides","Import imputable a la subvenció municipal","Import de l'aportació / Cofinançament de l'organització","Import total del projecte",null,"Import imputable a la subvenció municipal","Import de l'aportació / Cofinançament de l'organització","Import total del projecte"]
["D1. Nòmines i seguretat social IRPF (règim general o socis/es cooperativistes en règim d’autònoms) del personal propi vinculat al projecte subvencionable (màxim 25% import subvenció)",{"$f":"SUM(B24:B26)","v":0},{"$f":"SUM(C24:C26)","v":0},{"$f":"SUM(DespesesProjecte[[#This Row],[Import imputable a la subvenció municipal]],DespesesProjecte[[#This Row],[Import de l''aportació / Cofinançament de l''organització]])","v":0},null,"D1. Nòmines i seguretat social IRPF (règim general o socis/es cooperativistes en règim d’autònoms) del personal propi vinculat al projecte subvencionable (màxim 25% import subvenció)",{"$f":"SUM(G24:G26)","v":0},{"$f":"SUM(H24:H26)","v":0},{"$f":"+G23+H23","v":0},null,{"$f":"DespesesProjecte[[#This Row],[Import imputable a la subvenció municipal]]-G23","v":0},{"$f":"DespesesProjecte[[#This Row],[Import de l''aportació / Cofinançament de l''organització]]-H23","v":0},{"$f":"DespesesProjecte[[#This Row],[Import total del projecte]]-I23","v":0}]
[null,null,null,{"$f":"SUM(DespesesProjecte[[#This Row],[Import imputable a la subvenció municipal]],DespesesProjecte[[#This Row],[Import de l''aportació / Cofinançament de l''organització]])","v":0},null,null,null,null,{"$f":"+G24+H24","v":0},null,{"$f":"DespesesProjecte[[#This Row],[Import imputable a la subvenció municipal]]-G24","v":0},{"$f":"DespesesProjecte[[#This Row],[Import de l''aportació / Cofinançament de l''organització]]-H24","v":0},{"$f":"DespesesProjecte[[#This Row],[Import total del projecte]]-I24","v":0}]
[null,null,null,{"$f":"SUM(DespesesProjecte[[#This Row],[Import imputable a la subvenció municipal]],DespesesProjecte[[#This Row],[Import de l''aportació / Cofinançament de l''organització]])","v":0},null,null,null,null,0,null,{"$f":"DespesesProjecte[[#This Row],[Import imputable a la subvenció municipal]]-G25","v":0},{"$f":"DespesesProjecte[[#This Row],[Import de l''aportació / Cofinançament de l''organització]]-H25","v":0},{"$f":"DespesesProjecte[[#This Row],[Import total del projecte]]-I25","v":0}]
[null,null,null,{"$f":"SUM(DespesesProjecte[[#This Row],[Import imputable a la subvenció municipal]],DespesesProjecte[[#This Row],[Import de l''aportació / Cofinançament de l''organització]])","v":0},null,null,null,null,0,null,{"$f":"DespesesProjecte[[#This Row],[Import imputable a la subvenció municipal]]-G26","v":0},{"$f":"DespesesProjecte[[#This Row],[Import de l''aportació / Cofinançament de l''organització]]-H26","v":0},{"$f":"DespesesProjecte[[#This Row],[Import total del projecte]]-I26","v":0}]
["D2. Nòmines i seguretat social d’estudiants en pràctiques (amb un límit del 80% del seu sou brut corresponent al període de l’execució de la subvenció) - excepte si la seguretat social està bonificada",{"$f":"SUM(B28:B30)","v":0},{"$f":"SUM(C28:C30)","v":0},{"$f":"SUM(DespesesProjecte[[#This Row],[Import imputable a la subvenció municipal]],DespesesProjecte[[#This Row],[Import de l''aportació / Cofinançament de l''organització]])","v":0},null,"D2. Nòmines i seguretat social d’estudiants en pràctiques (amb un límit del 80% del seu sou brut corresponent al període de l’execució de la subvenció) - excepte si la seguretat social està bonificada",{"$f":"SUM(G28:G30)","v":0},{"$f":"SUM(H28:H30)","v":0},0,null,{"$f":"DespesesProjecte[[#This Row],[Import imputable a la subvenció municipal]]-G27","v":0},{"$f":"DespesesProjecte[[#This Row],[Import de l''aportació / Cofinançament de l''organització]]-H27","v":0},{"$f":"DespesesProjecte[[#This Row],[Import total del projecte]]-I27","v":0}]
[null,null,null,{"$f":"SUM(DespesesProjecte[[#This Row],[Import imputable a la subvenció municipal]],DespesesProjecte[[#This Row],[Import de l''aportació / Cofinançament de l''organització]])","v":0},null,null,null,null,0,null,{"$f":"DespesesProjecte[[#This Row],[Import imputable a la subvenció municipal]]-G28","v":0},{"$f":"DespesesProjecte[[#This Row],[Import de l''aportació / Cofinançament de l''organització]]-H28","v":0},{"$f":"DespesesProjecte[[#This Row],[Import total del projecte]]-I28","v":0}]
[null,null,null,{"$f":"SUM(DespesesProjecte[[#This Row],[Import imputable a la subvenció municipal]],DespesesProjecte[[#This Row],[Import de l''aportació / Cofinançament de l''organització]])","v":0},null,null,null,null,0,null,{"$f":"DespesesProjecte[[#This Row],[Import imputable a la subvenció municipal]]-G29","v":0},{"$f":"DespesesProjecte[[#This Row],[Import de l''aportació / Cofinançament de l''organització]]-H29","v":0},{"$f":"DespesesProjecte[[#This Row],[Import total del projecte]]-I29","v":0}]
[null,null,null,{"$f":"SUM(DespesesProjecte[[#This Row],[Import imputable a la subvenció municipal]],DespesesProjecte[[#This Row],[Import de l''aportació / Cofinançament de l''organització]])","v":0},null,null,null,null,0,null,{"$f":"DespesesProjecte[[#This Row],[Import imputable a la subvenció municipal]]-G30","v":0},{"$f":"DespesesProjecte[[#This Row],[Import de l''aportació / Cofinançament de l''organització]]-H30","v":0},{"$f":"DespesesProjecte[[#This Row],[Import total del projecte]]-I30","v":0}]
["TOTAL DE DESPESES DEL PERSONAL\n",{"$f":"SUM(B23+B27)","v":0},{"$f":"SUM(C23+C27)","v":0},{"$f":"SUM(D23+D27)","v":0},null,"TOTAL DE DESPESES DEL PERSONAL\n",{"$f":"SUM(G23+G27)","v":0},{"$f":"SUM(H23+H27)","v":0},{"$f":"SUM(I23+I27)","v":0},{"$f":"+IF(G31>G13*0.4,\"ALERTA: Màxim 40% de l'import imputable a la subvenció municipal\", \" \")","v":" "},{"$f":"DespesesProjecte[[#This Row],[Import imputable a la subvenció municipal]]-G31","v":0},{"$f":"DespesesProjecte[[#This Row],[Import de l''aportació / Cofinançament de l''organització]]-H31","v":0},{"$f":"DespesesProjecte[[#This Row],[Import de l''aportació / Cofinançament de l''organització]]-I31","v":0}]
["D3. Treballs realitzats per professionals i empreses externes directament vinculades al projecte",{"$f":"SUM(B33:B35)","v":0},{"$f":"SUM(C33:C35)","v":0},{"$f":"SUM(DespesesProjecte[[#This Row],[Import imputable a la subvenció municipal]],DespesesProjecte[[#This Row],[Import de l''aportació / Cofinançament de l''organització]])","v":0},null,"D3. Treballs realitzats per professionals i empreses externes directament vinculades al projecte",{"$f":"SUM(G33:G35)","v":0},{"$f":"SUM(H33:H35)","v":0},{"$f":"+G32+H32","v":0},null,{"$f":"DespesesProjecte[[#This Row],[Import imputable a la subvenció municipal]]-G32","v":0},{"$f":"DespesesProjecte[[#This Row],[Import de l''aportació / Cofinançament de l''organització]]-H32","v":0},{"$f":"DespesesProjecte[[#This Row],[Import total del projecte]]-I32","v":0}]
[null,null,null,{"$f":"SUM(DespesesProjecte[[#This Row],[Import imputable a la subvenció municipal]],DespesesProjecte[[#This Row],[Import de l''aportació / Cofinançament de l''organització]])","v":0},null,null,null,null,{"$f":"+G33+H33","v":0},null,{"$f":"DespesesProjecte[[#This Row],[Import imputable a la subvenció municipal]]-G33","v":0},{"$f":"DespesesProjecte[[#This Row],[Import de l''aportació / Cofinançament de l''organització]]-H33","v":0},{"$f":"DespesesProjecte[[#This Row],[Import total del projecte]]-I33","v":0}]
[null,null,null,{"$f":"SUM(DespesesProjecte[[#This Row],[Import imputable a la subvenció municipal]],DespesesProjecte[[#This Row],[Import de l''aportació / Cofinançament de l''organització]])","v":0},null,null,null,null,0,null,{"$f":"DespesesProjecte[[#This Row],[Import imputable a la subvenció municipal]]-G34","v":0},{"$f":"DespesesProjecte[[#This Row],[Import de l''aportació / Cofinançament de l''organització]]-H34","v":0},{"$f":"DespesesProjecte[[#This Row],[Import total del projecte]]-I34","v":0}]
[null,null,null,{"$f":"SUM(DespesesProjecte[[#This Row],[Import imputable a la subvenció municipal]],DespesesProjecte[[#This Row],[Import de l''aportació / Cofinançament de l''organització]])","v":0},null,null,null,null,0,null,{"$f":"DespesesProjecte[[#This Row],[Import imputable a la subvenció municipal]]-G35","v":0},{"$f":"DespesesProjecte[[#This Row],[Import de l''aportació / Cofinançament de l''organització]]-H35","v":0},{"$f":"DespesesProjecte[[#This Row],[Import total del projecte]]-I35","v":0}]
["D4. Adquisició de materials i béns consumibles íntegrament imputables al projecte ",{"$f":"SUM(B37:B39)","v":0},{"$f":"SUM(C37:C39)","v":0},{"$f":"SUM(DespesesProjecte[[#This Row],[Import imputable a la subvenció municipal]],DespesesProjecte[[#This Row],[Import de l''aportació / Cofinançament de l''organització]])","v":0},null,"D4. Adquisició de materials i béns consumibles íntegrament imputables al projecte ",{"$f":"SUM(G37:G39)","v":0},{"$f":"SUM(H37:H39)","v":0},0,null,{"$f":"DespesesProjecte[[#This Row],[Import imputable a la subvenció municipal]]-G36","v":0},{"$f":"DespesesProjecte[[#This Row],[Import de l''aportació / Cofinançament de l''organització]]-H36","v":0},{"$f":"DespesesProjecte[[#This Row],[Import total del projecte]]-I36","v":0}]
[null,null,null,{"$f":"SUM(DespesesProjecte[[#This Row],[Import imputable a la subvenció municipal]],DespesesProjecte[[#This Row],[Import de l''aportació / Cofinançament de l''organització]])","v":0},null,null,null,null,0,null,{"$f":"DespesesProjecte[[#This Row],[Import imputable a la subvenció municipal]]-G37","v":0},{"$f":"DespesesProjecte[[#This Row],[Import de l''aportació / Cofinançament de l''organització]]-H37","v":0},{"$f":"DespesesProjecte[[#This Row],[Import total del projecte]]-I37","v":0}]
[null,null,null,{"$f":"SUM(DespesesProjecte[[#This Row],[Import imputable a la subvenció municipal]],DespesesProjecte[[#This Row],[Import de l''aportació / Cofinançament de l''organització]])","v":0},null,null,null,null,0,null,{"$f":"DespesesProjecte[[#This Row],[Import imputable a la subvenció municipal]]-G38","v":0},{"$f":"DespesesProjecte[[#This Row],[Import de l''aportació / Cofinançament de l''organització]]-H38","v":0},{"$f":"DespesesProjecte[[#This Row],[Import total del projecte]]-I38","v":0}]
[null,null,null,{"$f":"SUM(DespesesProjecte[[#This Row],[Import imputable a la subvenció municipal]],DespesesProjecte[[#This Row],[Import de l''aportació / Cofinançament de l''organització]])","v":0},null,null,null,null,0,null,{"$f":"DespesesProjecte[[#This Row],[Import imputable a la subvenció municipal]]-G39","v":0},{"$f":"DespesesProjecte[[#This Row],[Import de l''aportació / Cofinançament de l''organització]]-H39","v":0},{"$f":"DespesesProjecte[[#This Row],[Import total del projecte]]-I39","v":0}]
["D5. Transport – missatgeria imputables al projecte",{"$f":"SUM(B41:B43)","v":0},{"$f":"SUM(C41:C43)","v":0},{"$f":"DespesesProjecte[[#This Row],[Import imputable a la subvenció municipal]]+DespesesProjecte[[#This Row],[Import de l''aportació / Cofinançament de l''organització]]","v":0},null,"D5. Transport – missatgeria imputables al projecte",{"$f":"SUM(G41:G43)","v":0},{"$f":"SUM(H41:H43)","v":0},0,null,{"$f":"DespesesProjecte[[#This Row],[Import imputable a la subvenció municipal]]-G40","v":0},{"$f":"DespesesProjecte[[#This Row],[Import de l''aportació / Cofinançament de l''organització]]-H40","v":0},{"$f":"DespesesProjecte[[#This Row],[Import total del projecte]]-I40","v":0}]
[null,null,null,{"$f":"SUM(DespesesProjecte[[#This Row],[Import imputable a la subvenció municipal]],DespesesProjecte[[#This Row],[Import de l''aportació / Cofinançament de l''organització]])","v":0},null,null,null,null,0,null,{"$f":"DespesesProjecte[[#This Row],[Import imputable a la subvenció municipal]]-G41","v":0},{"$f":"DespesesProjecte[[#This Row],[Import de l''aportació / Cofinançament de l''organització]]-H41","v":0},{"$f":"DespesesProjecte[[#This Row],[Import total del projecte]]-I41","v":0}]
[null,null,null,{"$f":"SUM(DespesesProjecte[[#This Row],[Import imputable a la subvenció municipal]],DespesesProjecte[[#This Row],[Import de l''aportació / Cofinançament de l''organització]])","v":0},null,null,null,null,0,null,{"$f":"DespesesProjecte[[#This Row],[Import imputable a la subvenció municipal]]-G42","v":0},{"$f":"DespesesProjecte[[#This Row],[Import de l''aportació / Cofinançament de l''organització]]-H42","v":0},{"$f":"DespesesProjecte[[#This Row],[Import total del projecte]]-I42","v":0}]
[null,null,null,{"$f":"SUM(DespesesProjecte[[#This Row],[Import imputable a la subvenció municipal]],DespesesProjecte[[#This Row],[Import de l''aportació / Cofinançament de l''organització]])","v":0},null,null,null,null,0,null,{"$f":"DespesesProjecte[[#This Row],[Import imputable a la subvenció municipal]]-G43","v":0},{"$f":"DespesesProjecte[[#This Row],[Import de l''aportació / Cofinançament de l''organització]]-H43","v":0},{"$f":"DespesesProjecte[[#This Row],[Import total del projecte]]-I43","v":0}]
["D6. Publicitat i propaganda de les activitats directament vinculades al projecte",{"$f":"SUM(B45:B47)","v":0},{"$f":"SUM(C45:C47)","v":0},{"$f":"SUM(DespesesProjecte[[#This Row],[Import imputable a la subvenció municipal]],DespesesProjecte[[#This Row],[Import de l''aportació / Cofinançament de l''organització]])","v":0},null,"D6. Publicitat i propaganda de les activitats directament vinculades al projecte",{"$f":"SUM(G45:G47)","v":0},{"$f":"SUM(H45:H47)","v":0},0,null,{"$f":"DespesesProjecte[[#This Row],[Import imputable a la subvenció municipal]]-G44","v":0},{"$f":"DespesesProjecte[[#This Row],[Import de l''aportació / Cofinançament de l''organització]]-H44","v":0},{"$f":"DespesesProjecte[[#This Row],[Import total del projecte]]-I44","v":0}]
[null,null,null,{"$f":"SUM(DespesesProjecte[[#This Row],[Import imputable a la subvenció municipal]],DespesesProjecte[[#This Row],[Import de l''aportació / Cofinançament de l''organització]])","v":0},null,null,null,null,0,null,{"$f":"DespesesProjecte[[#This Row],[Import imputable a la subvenció municipal]]-G45","v":0},{"$f":"DespesesProjecte[[#This Row],[Import de l''aportació / Cofinançament de l''organització]]-H45","v":0},{"$f":"DespesesProjecte[[#This Row],[Import total del projecte]]-I45","v":0}]
[null,null,null,{"$f":"SUM(DespesesProjecte[[#This Row],[Import imputable a la subvenció municipal]],DespesesProjecte[[#This Row],[Import de l''aportació / Cofinançament de l''organització]])","v":0},null,null,null,null,0,null,{"$f":"DespesesProjecte[[#This Row],[Import imputable a la subvenció municipal]]-G46","v":0},{"$f":"DespesesProjecte[[#This Row],[Import de l''aportació / Cofinançament de l''organització]]-H46","v":0},{"$f":"DespesesProjecte[[#This Row],[Import total del projecte]]-I46","v":0}]
[null,null,null,{"$f":"SUM(DespesesProjecte[[#This Row],[Import imputable a la subvenció municipal]],DespesesProjecte[[#This Row],[Import de l''aportació / Cofinançament de l''organització]])","v":0},null,null,null,null,0,null,{"$f":"DespesesProjecte[[#This Row],[Import imputable a la subvenció municipal]]-G47","v":0},{"$f":"DespesesProjecte[[#This Row],[Import de l''aportació / Cofinançament de l''organització]]-H47","v":0},{"$f":"DespesesProjecte[[#This Row],[Import total del projecte]]-I47","v":0}]
["D7. Allotjament i dietes, del personal contractat i voluntari, vinculats al projecte",{"$f":"SUM(B49:B51)","v":0},{"$f":"SUM(C49:C51)","v":0},{"$f":"SUM(DespesesProjecte[[#This Row],[Import imputable a la subvenció municipal]],DespesesProjecte[[#This Row],[Import de l''aportació / Cofinançament de l''organització]])","v":0},null,"D7. Allotjament i dietes, del personal contractat i voluntari, vinculats al projecte",{"$f":"SUM(G49:G51)","v":0},{"$f":"SUM(H49:H51)","v":0},0,null,{"$f":"DespesesProjecte[[#This Row],[Import imputable a la subvenció municipal]]-G48","v":0},{"$f":"DespesesProjecte[[#This Row],[Import de l''aportació / Cofinançament de l''organització]]-H48","v":0},{"$f":"DespesesProjecte[[#This Row],[Import total del projecte]]-I48","v":0}]
[null,null,null,{"$f":"SUM(DespesesProjecte[[#This Row],[Import imputable a la subvenció municipal]],DespesesProjecte[[#This Row],[Import de l''aportació / Cofinançament de l''organització]])","v":0},null,null,null,null,0,null,{"$f":"DespesesProjecte[[#This Row],[Import imputable a la subvenció municipal]]-G49","v":0},{"$f":"DespesesProjecte[[#This Row],[Import de l''aportació / Cofinançament de l''organització]]-H49","v":0},{"$f":"DespesesProjecte[[#This Row],[Import total del projecte]]-I49","v":0}]
[null,null,null,{"$f":"SUM(DespesesProjecte[[#This Row],[Import imputable a la subvenció municipal]],DespesesProjecte[[#This Row],[Import de l''aportació / Cofinançament de l''organització]])","v":0},null,null,null,null,0,null,{"$f":"DespesesProjecte[[#This Row],[Import imputable a la subvenció municipal]]-G50","v":0},{"$f":"DespesesProjecte[[#This Row],[Import de l''aportació / Cofinançament de l''organització]]-H50","v":0},{"$f":"DespesesProjecte[[#This Row],[Import total del projecte]]-I50","v":0}]
[null,null,null,{"$f":"SUM(DespesesProjecte[[#This Row],[Import imputable a la subvenció municipal]],DespesesProjecte[[#This Row],[Import de l''aportació / Cofinançament de l''organització]])","v":0},null,null,null,null,0,null,{"$f":"DespesesProjecte[[#This Row],[Import imputable a la subvenció municipal]]-G51","v":0},{"$f":"DespesesProjecte[[#This Row],[Import de l''aportació / Cofinançament de l''organització]]-H51","v":0},{"$f":"DespesesProjecte[[#This Row],[Import total del projecte]]-I51","v":0}]
["D8. Ajuts al transport per als/les participants dels projectes en cas que sigui necessari de manera justificada",{"$f":"SUM(B53:B55)","v":0},{"$f":"SUM(C53:C55)","v":0},{"$f":"SUM(DespesesProjecte[[#This Row],[Import imputable a la subvenció municipal]],DespesesProjecte[[#This Row],[Import de l''aportació / Cofinançament de l''organització]])","v":0},null,"D8. Ajuts al transport per als/les participants dels projectes en cas que sigui necessari de manera justificada",{"$f":"SUM(G53:G55)","v":0},{"$f":"SUM(H53:H55)","v":0},0,null,{"$f":"DespesesProjecte[[#This Row],[Import imputable a la subvenció municipal]]-G52","v":0},{"$f":"DespesesProjecte[[#This Row],[Import de l''aportació / Cofinançament de l''organització]]-H52","v":0},{"$f":"DespesesProjecte[[#This Row],[Import total del projecte]]-I52","v":0}]
[null,null,null,{"$f":"SUM(DespesesProjecte[[#This Row],[Import imputable a la subvenció municipal]],DespesesProjecte[[#This Row],[Import de l''aportació / Cofinançament de l''organització]])","v":0},null,null,null,null,0,null,{"$f":"DespesesProjecte[[#This Row],[Import imputable a la subvenció municipal]]-G53","v":0},{"$f":"DespesesProjecte[[#This Row],[Import de l''aportació / Cofinançament de l''organització]]-H53","v":0},{"$f":"DespesesProjecte[[#This Row],[Import total del projecte]]-I53","v":0}]
[null,null,null,{"$f":"SUM(DespesesProjecte[[#This Row],[Import imputable a la subvenció municipal]],DespesesProjecte[[#This Row],[Import de l''aportació / Cofinançament de l''organització]])","v":0},null,null,null,null,0,null,{"$f":"DespesesProjecte[[#This Row],[Import imputable a la subvenció municipal]]-G54","v":0},{"$f":"DespesesProjecte[[#This Row],[Import de l''aportació / Cofinançament de l''organització]]-H54","v":0},{"$f":"DespesesProjecte[[#This Row],[Import total del projecte]]-I54","v":0}]
[null,null,null,{"$f":"SUM(DespesesProjecte[[#This Row],[Import imputable a la subvenció municipal]],DespesesProjecte[[#This Row],[Import de l''aportació / Cofinançament de l''organització]])","v":0},null,null,null,null,0,null,{"$f":"DespesesProjecte[[#This Row],[Import imputable a la subvenció municipal]]-G55","v":0},{"$f":"DespesesProjecte[[#This Row],[Import de l''aportació / Cofinançament de l''organització]]-H55","v":0},{"$f":"DespesesProjecte[[#This Row],[Import total del projecte]]-I55","v":0}]
["D9. Viatges i desplaçaments imputables a les activitats del projecte",{"$f":"SUM(B57:B59)","v":0},{"$f":"SUM(C57:C59)","v":0},{"$f":"DespesesProjecte[[#This Row],[Import imputable a la subvenció municipal]]+DespesesProjecte[[#This Row],[Import de l''aportació / Cofinançament de l''organització]]","v":0},null,"D9. Viatges i desplaçaments imputables a les activitats del projecte",{"$f":"SUM(G57:G59)","v":0},{"$f":"SUM(H57:H59)","v":0},0,null,{"$f":"DespesesProjecte[[#This Row],[Import imputable a la subvenció municipal]]-G56","v":0},{"$f":"DespesesProjecte[[#This Row],[Import de l''aportació / Cofinançament de l''organització]]-H56","v":0},{"$f":"DespesesProjecte[[#This Row],[Import total del projecte]]-I56","v":0}]
[null,null,null,{"$f":"SUM(DespesesProjecte[[#This Row],[Import imputable a la subvenció municipal]],DespesesProjecte[[#This Row],[Import de l''aportació / Cofinançament de l''organització]])","v":0},null,null,null,null,{"$f":"+G57+H57","v":0},null,{"$f":"DespesesProjecte[[#This Row],[Import imputable a la subvenció municipal]]-G57","v":0},{"$f":"DespesesProjecte[[#This Row],[Import de l''aportació / Cofinançament de l''organització]]-H57","v":0},{"$f":"DespesesProjecte[[#This Row],[Import total del projecte]]-I57","v":0}]
[null,null,null,{"$f":"SUM(DespesesProjecte[[#This Row],[Import imputable a la subvenció municipal]],DespesesProjecte[[#This Row],[Import de l''aportació / Cofinançament de l''organització]])","v":0},null,null,null,null,0,null,{"$f":"DespesesProjecte[[#This Row],[Import imputable a la subvenció municipal]]-G58","v":0},{"$f":"DespesesProjecte[[#This Row],[Import de l''aportació / Cofinançament de l''organització]]-H58","v":0},{"$f":"DespesesProjecte[[#This Row],[Import total del projecte]]-I58","v":0}]
[null,null,null,{"$f":"SUM(DespesesProjecte[[#This Row],[Import imputable a la subvenció municipal]],DespesesProjecte[[#This Row],[Import de l''aportació / Cofinançament de l''organització]])","v":0},null,null,null,null,0,null,{"$f":"DespesesProjecte[[#This Row],[Import imputable a la subvenció municipal]]-G59","v":0},{"$f":"DespesesProjecte[[#This Row],[Import de l''aportació / Cofinançament de l''organització]]-H59","v":0},{"$f":"DespesesProjecte[[#This Row],[Import total del projecte]]-I59","v":0}]
["D10. Tributs, quan siguin abonats directament per la persona jurídica beneficiària",{"$f":"SUM(B61:B63)","v":0},{"$f":"SUM(C61:C63)","v":0},{"$f":"DespesesProjecte[[#This Row],[Import imputable a la subvenció municipal]]+DespesesProjecte[[#This Row],[Import de l''aportació / Cofinançament de l''organització]]","v":0},null,"D10. Tributs, quan siguin abonats directament per la persona jurídica  beneficiària",{"$f":"SUM(G61:G63)","v":0},{"$f":"SUM(H61:H63)","v":0},{"$f":"+G60+H60","v":0},null,{"$f":"DespesesProjecte[[#This Row],[Import imputable a la subvenció municipal]]-G60","v":0},{"$f":"DespesesProjecte[[#This Row],[Import de l''aportació / Cofinançament de l''organització]]-H60","v":0},{"$f":"DespesesProjecte[[#This Row],[Import total del projecte]]-I60","v":0}]
[null,null,null,{"$f":"SUM(DespesesProjecte[[#This Row],[Import imputable a la subvenció municipal]],DespesesProjecte[[#This Row],[Import de l''aportació / Cofinançament de l''organització]])","v":0},null,null,null,null,0,null,{"$f":"DespesesProjecte[[#This Row],[Import imputable a la subvenció municipal]]-G61","v":0},{"$f":"DespesesProjecte[[#This Row],[Import de l''aportació / Cofinançament de l''organització]]-H61","v":0},{"$f":"DespesesProjecte[[#This Row],[Import total del projecte]]-I61","v":0}]
[null,null,null,{"$f":"SUM(DespesesProjecte[[#This Row],[Import imputable a la subvenció municipal]],DespesesProjecte[[#This Row],[Import de l''aportació / Cofinançament de l''organització]])","v":0},null,null,null,null,0,null,{"$f":"DespesesProjecte[[#This Row],[Import imputable a la subvenció municipal]]-G62","v":0},{"$f":"DespesesProjecte[[#This Row],[Import de l''aportació / Cofinançament de l''organització]]-H62","v":0},{"$f":"DespesesProjecte[[#This Row],[Import total del projecte]]-I62","v":0}]
[null,null,null,{"$f":"SUM(DespesesProjecte[[#This Row],[Import imputable a la subvenció municipal]],DespesesProjecte[[#This Row],[Import de l''aportació / Cofinançament de l''organització]])","v":0},null,null,null,null,0,null,{"$f":"DespesesProjecte[[#This Row],[Import imputable a la subvenció municipal]]-G63","v":0},{"$f":"DespesesProjecte[[#This Row],[Import de l''aportació / Cofinançament de l''organització]]-H63","v":0},{"$f":"DespesesProjecte[[#This Row],[Import total del projecte]]-I63","v":0}]
["D11. Despeses de l'informe d'auditoria (màxim 1.500€ subvenció)",{"$f":"SUM(B65:B67)","v":0},{"$f":"SUM(C65:C67)","v":0},{"$f":"DespesesProjecte[[#This Row],[Import imputable a la subvenció municipal]]+DespesesProjecte[[#This Row],[Import de l''aportació / Cofinançament de l''organització]]","v":0},null,"D11. Despeses de l'informe d'auditoria (màxim 1.500€ subvenció)",{"$f":"SUM(G65:G67)","v":0},{"$f":"SUM(H65:H67)","v":0},0,{"$f":"+IF(G64>1500,\"ALERTA: Màxim 1.500€ imputables a la subvenció municipal\", \" \")","v":" "},{"$f":"DespesesProjecte[[#This Row],[Import imputable a la subvenció municipal]]-G64","v":0},{"$f":"DespesesProjecte[[#This Row],[Import de l''aportació / Cofinançament de l''organització]]-H64","v":0},{"$f":"DespesesProjecte[[#This Row],[Import total del projecte]]-I64","v":0}]
[null,null,null,{"$f":"SUM(DespesesProjecte[[#This Row],[Import imputable a la subvenció municipal]],DespesesProjecte[[#This Row],[Import de l''aportació / Cofinançament de l''organització]])","v":0},null,null,null,null,0,null,{"$f":"DespesesProjecte[[#This Row],[Import imputable a la subvenció municipal]]-G65","v":0},{"$f":"DespesesProjecte[[#This Row],[Import de l''aportació / Cofinançament de l''organització]]-H65","v":0},{"$f":"DespesesProjecte[[#This Row],[Import total del projecte]]-I65","v":0}]
[null,null,null,{"$f":"SUM(DespesesProjecte[[#This Row],[Import imputable a la subvenció municipal]],DespesesProjecte[[#This Row],[Import de l''aportació / Cofinançament de l''organització]])","v":0},null,null,null,null,0,null,{"$f":"DespesesProjecte[[#This Row],[Import imputable a la subvenció municipal]]-G66","v":0},{"$f":"DespesesProjecte[[#This Row],[Import de l''aportació / Cofinançament de l''organització]]-H66","v":0},{"$f":"DespesesProjecte[[#This Row],[Import total del projecte]]-I66","v":0}]
[null,null,null,{"$f":"SUM(DespesesProjecte[[#This Row],[Import imputable a la subvenció municipal]],DespesesProjecte[[#This Row],[Import de l''aportació / Cofinançament de l''organització]])","v":0},null,null,null,null,0,null,{"$f":"DespesesProjecte[[#This Row],[Import imputable a la subvenció municipal]]-G67","v":0},{"$f":"DespesesProjecte[[#This Row],[Import de l''aportació / Cofinançament de l''organització]]-H67","v":0},{"$f":"DespesesProjecte[[#This Row],[Import total del projecte]]-I67","v":0}]
["D12. Altres despeses que de manera justificada i per la tipologia del projecte puguin imputar-se directament al projecte",{"$f":"SUM(B69:B71)","v":0},{"$f":"SUM(C69:C71)","v":0},{"$f":"DespesesProjecte[[#This Row],[Import imputable a la subvenció municipal]]+DespesesProjecte[[#This Row],[Import de l''aportació / Cofinançament de l''organització]]","v":0},null,"D12. Altres despeses que de manera justificada i per la tipologia del projecte puguin imputar-se directament al projecte",{"$f":"SUM(G69:G71)","v":0},{"$f":"SUM(H69:H71)","v":0},0,null,{"$f":"DespesesProjecte[[#This Row],[Import imputable a la subvenció municipal]]-G68","v":0},{"$f":"DespesesProjecte[[#This Row],[Import de l''aportació / Cofinançament de l''organització]]-H68","v":0},{"$f":"DespesesProjecte[[#This Row],[Import total del projecte]]-I68","v":0}]
[null,null,null,{"$f":"SUM(DespesesProjecte[[#This Row],[Import imputable a la subvenció municipal]],DespesesProjecte[[#This Row],[Import de l''aportació / Cofinançament de l''organització]])","v":0},null,null,null,null,0,null,{"$f":"DespesesProjecte[[#This Row],[Import imputable a la subvenció municipal]]-G69","v":0},{"$f":"DespesesProjecte[[#This Row],[Import de l''aportació / Cofinançament de l''organització]]-H69","v":0},{"$f":"DespesesProjecte[[#This Row],[Import total del projecte]]-I69","v":0}]
[null,null,null,{"$f":"SUM(DespesesProjecte[[#This Row],[Import imputable a la subvenció municipal]],DespesesProjecte[[#This Row],[Import de l''aportació / Cofinançament de l''organització]])","v":0},null,null,null,null,0,null,{"$f":"DespesesProjecte[[#This Row],[Import imputable a la subvenció municipal]]-G70","v":0},{"$f":"DespesesProjecte[[#This Row],[Import de l''aportació / Cofinançament de l''organització]]-H70","v":0},{"$f":"DespesesProjecte[[#This Row],[Import total del projecte]]-I70","v":0}]
[null,null,null,{"$f":"SUM(DespesesProjecte[[#This Row],[Import imputable a la subvenció municipal]],DespesesProjecte[[#This Row],[Import de l''aportació / Cofinançament de l''organització]])","v":0},null,null,null,null,0,null,{"$f":"DespesesProjecte[[#This Row],[Import imputable a la subvenció municipal]]-G71","v":0},{"$f":"DespesesProjecte[[#This Row],[Import de l''aportació / Cofinançament de l''organització]]-H71","v":0},{"$f":"DespesesProjecte[[#This Row],[Import total del projecte]]-I71","v":0}]
["TOTAL D'ALTRES DESPESES DIRECTES",{"$f":"B32+B36+B40+B44+B48+B52+B56+B60+B64+B68","v":0},{"$f":"C32+C36+C40+C44+C48+C52+C56+C60+C64+C68","v":0},{"$f":"D32+D36+D40+D44+D48+D52+D56+D60+D64+D68","v":0},null,"TOTAL D'ALTRES DESPESES DIRECTES",{"$f":"G32+G36+G40+G44+G48+G52+G56+G60+G64+G68","v":0},{"$f":"H32+H36+H40+H44+H48+H52+H56+H60+H64+H68","v":0},{"$f":"I32+I36+I40+I44+I48+I52+I56+I60+I64+I68","v":0},null,{"$f":"DespesesProjecte[[#This Row],[Import imputable a la subvenció municipal]]-G72","v":0},{"$f":"DespesesProjecte[[#This Row],[Import de l''aportació / Cofinançament de l''organització]]-H72","v":0},{"$f":"DespesesProjecte[[#This Row],[Import total del projecte]]-I72","v":0}]
["TOTAL DESPESES DIRECTES (aquelles que s’identifiquen directament amb el projecte subvencionable)",{"$f":"B31+B72","v":0},{"$f":"C31+C72","v":0},{"$f":"D31+D72","v":0},null,"TOTAL DESPESES DIRECTES (aquelles que s’identifiquen directament amb el projecte subvencionable)",{"$f":"G31+G72","v":0},{"$f":"H31+H72","v":0},{"$f":"I31+I72","v":0},null,{"$f":"DespesesProjecte[[#This Row],[Import imputable a la subvenció municipal]]-G73","v":0},{"$f":"DespesesProjecte[[#This Row],[Import de l''aportació / Cofinançament de l''organització]]-H73","v":0},{"$f":"DespesesProjecte[[#This Row],[Import total del projecte]]-I73","v":0}]
["I1. Personal propi vinculat indirectament (nòmines i seguretat social) ",{"$f":"SUM(B75:B77)","v":0},{"$f":"SUM(C75:C77)","v":0},{"$f":"SUM(DespesesProjecte[[#This Row],[Import imputable a la subvenció municipal]],DespesesProjecte[[#This Row],[Import de l''aportació / Cofinançament de l''organització]])","v":0},null,"I1. Personal propi vinculat indirectament (nòmines i seguretat social) ",{"$f":"SUM(G75:G77)","v":0},{"$f":"SUM(H75:H77)","v":0},{"$f":"+G74+H74","v":0},null,{"$f":"DespesesProjecte[[#This Row],[Import imputable a la subvenció municipal]]-G74","v":0},{"$f":"DespesesProjecte[[#This Row],[Import de l''aportació / Cofinançament de l''organització]]-H74","v":0},{"$f":"DespesesProjecte[[#This Row],[Import total del projecte]]-I74","v":0}]
[null,null,null,{"$f":"SUM(DespesesProjecte[[#This Row],[Import imputable a la subvenció municipal]],DespesesProjecte[[#This Row],[Import de l''aportació / Cofinançament de l''organització]])","v":0},null,null,null,null,{"$f":"+G75+H75","v":0},null,{"$f":"DespesesProjecte[[#This Row],[Import imputable a la subvenció municipal]]-G75","v":0},{"$f":"DespesesProjecte[[#This Row],[Import de l''aportació / Cofinançament de l''organització]]-H75","v":0},{"$f":"DespesesProjecte[[#This Row],[Import total del projecte]]-I75","v":0}]
[null,null,null,{"$f":"SUM(DespesesProjecte[[#This Row],[Import imputable a la subvenció municipal]],DespesesProjecte[[#This Row],[Import de l''aportació / Cofinançament de l''organització]])","v":0},null,null,null,null,0,null,{"$f":"DespesesProjecte[[#This Row],[Import imputable a la subvenció municipal]]-G76","v":0},{"$f":"DespesesProjecte[[#This Row],[Import de l''aportació / Cofinançament de l''organització]]-H76","v":0},{"$f":"DespesesProjecte[[#This Row],[Import total del projecte]]-I76","v":0}]
[null,null,null,{"$f":"SUM(DespesesProjecte[[#This Row],[Import imputable a la subvenció municipal]],DespesesProjecte[[#This Row],[Import de l''aportació / Cofinançament de l''organització]])","v":0},null,null,null,null,0,null,{"$f":"DespesesProjecte[[#This Row],[Import imputable a la subvenció municipal]]-G77","v":0},{"$f":"DespesesProjecte[[#This Row],[Import de l''aportació / Cofinançament de l''organització]]-H77","v":0},{"$f":"DespesesProjecte[[#This Row],[Import total del projecte]]-I77","v":0}]
["I2. Assegurances",{"$f":"SUM(B79:B81)","v":0},{"$f":"SUM(C79:C81)","v":0},{"$f":"SUM(DespesesProjecte[[#This Row],[Import imputable a la subvenció municipal]],DespesesProjecte[[#This Row],[Import de l''aportació / Cofinançament de l''organització]])","v":0},null,"I2. Assegurances",{"$f":"SUM(G79:G81)","v":0},{"$f":"SUM(H79:H81)","v":0},0,null,{"$f":"DespesesProjecte[[#This Row],[Import imputable a la subvenció municipal]]-G78","v":0},{"$f":"DespesesProjecte[[#This Row],[Import de l''aportació / Cofinançament de l''organització]]-H78","v":0},{"$f":"DespesesProjecte[[#This Row],[Import total del projecte]]-I78","v":0}]
[null,null,null,{"$f":"SUM(DespesesProjecte[[#This Row],[Import imputable a la subvenció municipal]],DespesesProjecte[[#This Row],[Import de l''aportació / Cofinançament de l''organització]])","v":0},null,null,null,null,0,null,{"$f":"DespesesProjecte[[#This Row],[Import imputable a la subvenció municipal]]-G79","v":0},{"$f":"DespesesProjecte[[#This Row],[Import de l''aportació / Cofinançament de l''organització]]-H79","v":0},{"$f":"DespesesProjecte[[#This Row],[Import total del projecte]]-I79","v":0}]
[null,null,null,{"$f":"SUM(DespesesProjecte[[#This Row],[Import imputable a la subvenció municipal]],DespesesProjecte[[#This Row],[Import de l''aportació / Cofinançament de l''organització]])","v":0},null,null,null,null,0,null,{"$f":"DespesesProjecte[[#This Row],[Import imputable a la subvenció municipal]]-G80","v":0},{"$f":"DespesesProjecte[[#This Row],[Import de l''aportació / Cofinançament de l''organització]]-H80","v":0},{"$f":"DespesesProjecte[[#This Row],[Import total del projecte]]-I80","v":0}]
[null,null,null,{"$f":"SUM(DespesesProjecte[[#This Row],[Import imputable a la subvenció municipal]],DespesesProjecte[[#This Row],[Import de l''aportació / Cofinançament de l''organització]])","v":0},null,null,null,null,0,null,{"$f":"DespesesProjecte[[#This Row],[Import imputable a la subvenció municipal]]-G81","v":0},{"$f":"DespesesProjecte[[#This Row],[Import de l''aportació / Cofinançament de l''organització]]-H81","v":0},{"$f":"DespesesProjecte[[#This Row],[Import total del projecte]]-I81","v":0}]
["I3. Amortització",{"$f":"SUM(B83:B85)","v":0},{"$f":"SUM(C83:C85)","v":0},{"$f":"SUM(DespesesProjecte[[#This Row],[Import imputable a la subvenció municipal]],DespesesProjecte[[#This Row],[Import de l''aportació / Cofinançament de l''organització]])","v":0},null,"I3. Amortització",{"$f":"SUM(G83:G85)","v":0},{"$f":"SUM(H83:H85)","v":0},0,null,{"$f":"DespesesProjecte[[#This Row],[Import imputable a la subvenció municipal]]-G82","v":0},{"$f":"DespesesProjecte[[#This Row],[Import de l''aportació / Cofinançament de l''organització]]-H82","v":0},{"$f":"DespesesProjecte[[#This Row],[Import total del projecte]]-I82","v":0}]
[null,null,null,{"$f":"SUM(DespesesProjecte[[#This Row],[Import imputable a la subvenció municipal]],DespesesProjecte[[#This Row],[Import de l''aportació / Cofinançament de l''organització]])","v":0},null,null,null,null,0,null,{"$f":"DespesesProjecte[[#This Row],[Import imputable a la subvenció municipal]]-G83","v":0},{"$f":"DespesesProjecte[[#This Row],[Import de l''aportació / Cofinançament de l''organització]]-H83","v":0},{"$f":"DespesesProjecte[[#This Row],[Import total del projecte]]-I83","v":0}]
[null,null,null,{"$f":"SUM(DespesesProjecte[[#This Row],[Import imputable a la subvenció municipal]],DespesesProjecte[[#This Row],[Import de l''aportació / Cofinançament de l''organització]])","v":0},null,null,null,null,0,null,{"$f":"DespesesProjecte[[#This Row],[Import imputable a la subvenció municipal]]-G84","v":0},{"$f":"DespesesProjecte[[#This Row],[Import de l''aportació / Cofinançament de l''organització]]-H84","v":0},{"$f":"DespesesProjecte[[#This Row],[Import total del projecte]]-I84","v":0}]
[null,null,null,{"$f":"SUM(DespesesProjecte[[#This Row],[Import imputable a la subvenció municipal]],DespesesProjecte[[#This Row],[Import de l''aportació / Cofinançament de l''organització]])","v":0},null,null,null,null,0,null,{"$f":"DespesesProjecte[[#This Row],[Import imputable a la subvenció municipal]]-G85","v":0},{"$f":"DespesesProjecte[[#This Row],[Import de l''aportació / Cofinançament de l''organització]]-H85","v":0},{"$f":"DespesesProjecte[[#This Row],[Import total del projecte]]-I85","v":0}]
["I4. Lloguer de béns immobles",{"$f":"SUM(B87:B89)","v":0},{"$f":"SUM(C87:C89)","v":0},{"$f":"SUM(DespesesProjecte[[#This Row],[Import imputable a la subvenció municipal]],DespesesProjecte[[#This Row],[Import de l''aportació / Cofinançament de l''organització]])","v":0},null,"I4. Lloguer de béns immobles",{"$f":"SUM(G87:G89)","v":0},{"$f":"SUM(H87:H89)","v":0},0,null,{"$f":"DespesesProjecte[[#This Row],[Import imputable a la subvenció municipal]]-G86","v":0},{"$f":"DespesesProjecte[[#This Row],[Import de l''aportació / Cofinançament de l''organització]]-H86","v":0},{"$f":"DespesesProjecte[[#This Row],[Import total del projecte]]-I86","v":0}]
[null,null,null,{"$f":"SUM(DespesesProjecte[[#This Row],[Import imputable a la subvenció municipal]],DespesesProjecte[[#This Row],[Import de l''aportació / Cofinançament de l''organització]])","v":0},null,null,null,null,0,null,{"$f":"DespesesProjecte[[#This Row],[Import imputable a la subvenció municipal]]-G87","v":0},{"$f":"DespesesProjecte[[#This Row],[Import de l''aportació / Cofinançament de l''organització]]-H87","v":0},{"$f":"DespesesProjecte[[#This Row],[Import total del projecte]]-I87","v":0}]
[null,null,null,{"$f":"SUM(DespesesProjecte[[#This Row],[Import imputable a la subvenció municipal]],DespesesProjecte[[#This Row],[Import de l''aportació / Cofinançament de l''organització]])","v":0},null,null,null,null,0,null,{"$f":"DespesesProjecte[[#This Row],[Import imputable a la subvenció municipal]]-G88","v":0},{"$f":"DespesesProjecte[[#This Row],[Import de l''aportació / Cofinançament de l''organització]]-H88","v":0},{"$f":"DespesesProjecte[[#This Row],[Import total del projecte]]-I88","v":0}]
[null,null,null,{"$f":"SUM(DespesesProjecte[[#This Row],[Import imputable a la subvenció municipal]],DespesesProjecte[[#This Row],[Import de l''aportació / Cofinançament de l''organització]])","v":0},null,null,null,null,0,null,{"$f":"DespesesProjecte[[#This Row],[Import imputable a la subvenció municipal]]-G89","v":0},{"$f":"DespesesProjecte[[#This Row],[Import de l''aportació / Cofinançament de l''organització]]-H89","v":0},{"$f":"DespesesProjecte[[#This Row],[Import total del projecte]]-I89","v":0}]
["I5. Adquisició de materials i béns consumibles parcialment imputables al projecte",{"$f":"SUM(B91:B93)","v":0},{"$f":"SUM(C91:C93)","v":0},{"$f":"SUM(DespesesProjecte[[#This Row],[Import imputable a la subvenció municipal]],DespesesProjecte[[#This Row],[Import de l''aportació / Cofinançament de l''organització]])","v":0},null,"I5. Adquisició de materials i béns consumibles parcialment imputables al projecte",{"$f":"SUM(G91:G93)","v":0},{"$f":"SUM(H91:H93)","v":0},0,null,{"$f":"DespesesProjecte[[#This Row],[Import imputable a la subvenció municipal]]-G90","v":0},{"$f":"DespesesProjecte[[#This Row],[Import de l''aportació / Cofinançament de l''organització]]-H90","v":0},{"$f":"DespesesProjecte[[#This Row],[Import total del projecte]]-I90","v":0}]
[null,null,null,{"$f":"SUM(DespesesProjecte[[#This Row],[Import imputable a la subvenció municipal]],DespesesProjecte[[#This Row],[Import de l''aportació / Cofinançament de l''organització]])","v":0},null,null,null,null,0,null,{"$f":"DespesesProjecte[[#This Row],[Import imputable a la subvenció municipal]]-G91","v":0},{"$f":"DespesesProjecte[[#This Row],[Import de l''aportació / Cofinançament de l''organització]]-H91","v":0},{"$f":"DespesesProjecte[[#This Row],[Import total del projecte]]-I91","v":0}]
[null,null,null,{"$f":"SUM(DespesesProjecte[[#This Row],[Import imputable a la subvenció municipal]],DespesesProjecte[[#This Row],[Import de l''aportació / Cofinançament de l''organització]])","v":0},null,null,null,null,0,null,{"$f":"DespesesProjecte[[#This Row],[Import imputable a la subvenció municipal]]-G92","v":0},{"$f":"DespesesProjecte[[#This Row],[Import de l''aportació / Cofinançament de l''organització]]-H92","v":0},{"$f":"DespesesProjecte[[#This Row],[Import total del projecte]]-I92","v":0}]
[null,null,null,{"$f":"SUM(DespesesProjecte[[#This Row],[Import imputable a la subvenció municipal]],DespesesProjecte[[#This Row],[Import de l''aportació / Cofinançament de l''organització]])","v":0},null,null,null,null,0,null,{"$f":"DespesesProjecte[[#This Row],[Import imputable a la subvenció municipal]]-G93","v":0},{"$f":"DespesesProjecte[[#This Row],[Import de l''aportació / Cofinançament de l''organització]]-H93","v":0},{"$f":"DespesesProjecte[[#This Row],[Import total del projecte]]-I93","v":0}]
["I6. Manteniment d’edificis i/o instal·lacions",{"$f":"SUM(B95:B97)","v":0},{"$f":"SUM(C95:C97)","v":0},{"$f":"SUM(DespesesProjecte[[#This Row],[Import imputable a la subvenció municipal]],DespesesProjecte[[#This Row],[Import de l''aportació / Cofinançament de l''organització]])","v":0},null,"I6. Manteniment d’edificis i/o instal·lacions",{"$f":"SUM(G95:G97)","v":0},{"$f":"SUM(H95:H97)","v":0},0,null,{"$f":"DespesesProjecte[[#This Row],[Import imputable a la subvenció municipal]]-G94","v":0},{"$f":"DespesesProjecte[[#This Row],[Import de l''aportació / Cofinançament de l''organització]]-H94","v":0},{"$f":"DespesesProjecte[[#This Row],[Import total del projecte]]-I94","v":0}]
[null,null,null,{"$f":"SUM(DespesesProjecte[[#This Row],[Import imputable a la subvenció municipal]],DespesesProjecte[[#This Row],[Import de l''aportació / Cofinançament de l''organització]])","v":0},null,null,null,null,0,null,{"$f":"DespesesProjecte[[#This Row],[Import imputable a la subvenció municipal]]-G95","v":0},{"$f":"DespesesProjecte[[#This Row],[Import de l''aportació / Cofinançament de l''organització]]-H95","v":0},{"$f":"DespesesProjecte[[#This Row],[Import total del projecte]]-I95","v":0}]
[null,null,null,{"$f":"SUM(DespesesProjecte[[#This Row],[Import imputable a la subvenció municipal]],DespesesProjecte[[#This Row],[Import de l''aportació / Cofinançament de l''organització]])","v":0},null,null,null,null,0,null,{"$f":"DespesesProjecte[[#This Row],[Import imputable a la subvenció municipal]]-G96","v":0},{"$f":"DespesesProjecte[[#This Row],[Import de l''aportació / Cofinançament de l''organització]]-H96","v":0},{"$f":"DespesesProjecte[[#This Row],[Import total del projecte]]-I96","v":0}]
[null,null,null,{"$f":"SUM(DespesesProjecte[[#This Row],[Import imputable a la subvenció municipal]],DespesesProjecte[[#This Row],[Import de l''aportació / Cofinançament de l''organització]])","v":0},null,null,null,null,0,null,{"$f":"DespesesProjecte[[#This Row],[Import imputable a la subvenció municipal]]-G97","v":0},{"$f":"DespesesProjecte[[#This Row],[Import de l''aportació / Cofinançament de l''organització]]-H97","v":0},{"$f":"DespesesProjecte[[#This Row],[Import total del projecte]]-I97","v":0}]
["I7. Comunicacions (telèfon, correus, connexió a internet)",{"$f":"SUM(B99:B101)","v":0},{"$f":"SUM(C99:C101)","v":0},{"$f":"SUM(DespesesProjecte[[#This Row],[Import imputable a la subvenció municipal]],DespesesProjecte[[#This Row],[Import de l''aportació / Cofinançament de l''organització]])","v":0},null,"I7. Comunicacions (telèfon, correus, connexió a internet)",{"$f":"SUM(G99:G101)","v":0},{"$f":"SUM(H99:H101)","v":0},0,null,{"$f":"DespesesProjecte[[#This Row],[Import imputable a la subvenció municipal]]-G98","v":0},{"$f":"DespesesProjecte[[#This Row],[Import de l''aportació / Cofinançament de l''organització]]-H98","v":0},{"$f":"DespesesProjecte[[#This Row],[Import total del projecte]]-I98","v":0}]
[null,null,null,{"$f":"SUM(DespesesProjecte[[#This Row],[Import imputable a la subvenció municipal]],DespesesProjecte[[#This Row],[Import de l''aportació / Cofinançament de l''organització]])","v":0},null,null,null,null,0,null,{"$f":"DespesesProjecte[[#This Row],[Import imputable a la subvenció municipal]]-G99","v":0},{"$f":"DespesesProjecte[[#This Row],[Import de l''aportació / Cofinançament de l''organització]]-H99","v":0},{"$f":"DespesesProjecte[[#This Row],[Import total del projecte]]-I99","v":0}]
[null,null,null,{"$f":"SUM(DespesesProjecte[[#This Row],[Import imputable a la subvenció municipal]],DespesesProjecte[[#This Row],[Import de l''aportació / Cofinançament de l''organització]])","v":0},null,null,null,null,0,null,{"$f":"DespesesProjecte[[#This Row],[Import imputable a la subvenció municipal]]-G100","v":0},{"$f":"DespesesProjecte[[#This Row],[Import de l''aportació / Cofinançament de l''organització]]-H100","v":0},{"$f":"DespesesProjecte[[#This Row],[Import total del projecte]]-I100","v":0}]
[null,null,null,{"$f":"SUM(DespesesProjecte[[#This Row],[Import imputable a la subvenció municipal]],DespesesProjecte[[#This Row],[Import de l''aportació / Cofinançament de l''organització]])","v":0},null,null,null,null,0,null,{"$f":"DespesesProjecte[[#This Row],[Import imputable a la subvenció municipal]]-G101","v":0},{"$f":"DespesesProjecte[[#This Row],[Import de l''aportació / Cofinançament de l''organització]]-H101","v":0},{"$f":"DespesesProjecte[[#This Row],[Import total del projecte]]-I101","v":0}]
["I8. Despeses financeres",{"$f":"SUM(B103:B105)","v":0},{"$f":"SUM(C103:C105)","v":0},{"$f":"SUM(DespesesProjecte[[#This Row],[Import imputable a la subvenció municipal]],DespesesProjecte[[#This Row],[Import de l''aportació / Cofinançament de l''organització]])","v":0},null,"I8. Despeses financeres",{"$f":"SUM(G103:G105)","v":0},{"$f":"SUM(H103:H105)","v":0},0,null,{"$f":"DespesesProjecte[[#This Row],[Import imputable a la subvenció municipal]]-G102","v":0},{"$f":"DespesesProjecte[[#This Row],[Import de l''aportació / Cofinançament de l''organització]]-H102","v":0},{"$f":"DespesesProjecte[[#This Row],[Import total del projecte]]-I102","v":0}]
[null,null,null,{"$f":"SUM(DespesesProjecte[[#This Row],[Import imputable a la subvenció municipal]],DespesesProjecte[[#This Row],[Import de l''aportació / Cofinançament de l''organització]])","v":0},null,null,null,null,0,null,{"$f":"DespesesProjecte[[#This Row],[Import imputable a la subvenció municipal]]-G103","v":0},{"$f":"DespesesProjecte[[#This Row],[Import de l''aportació / Cofinançament de l''organització]]-H103","v":0},{"$f":"DespesesProjecte[[#This Row],[Import total del projecte]]-I103","v":0}]
[null,null,null,{"$f":"SUM(DespesesProjecte[[#This Row],[Import imputable a la subvenció municipal]],DespesesProjecte[[#This Row],[Import de l''aportació / Cofinançament de l''organització]])","v":0},null,null,null,null,0,null,{"$f":"DespesesProjecte[[#This Row],[Import imputable a la subvenció municipal]]-G104","v":0},{"$f":"DespesesProjecte[[#This Row],[Import de l''aportació / Cofinançament de l''organització]]-H104","v":0},{"$f":"DespesesProjecte[[#This Row],[Import total del projecte]]-I104","v":0}]
[null,null,null,{"$f":"SUM(DespesesProjecte[[#This Row],[Import imputable a la subvenció municipal]],DespesesProjecte[[#This Row],[Import de l''aportació / Cofinançament de l''organització]])","v":0},null,null,null,null,0,null,{"$f":"DespesesProjecte[[#This Row],[Import imputable a la subvenció municipal]]-G105","v":0},{"$f":"DespesesProjecte[[#This Row],[Import de l''aportació / Cofinançament de l''organització]]-H105","v":0},{"$f":"DespesesProjecte[[#This Row],[Import total del projecte]]-I105","v":0}]
["I9. Subministraments ",{"$f":"SUM(B107:B109)","v":0},{"$f":"SUM(C107:C109)","v":0},{"$f":"SUM(DespesesProjecte[[#This Row],[Import imputable a la subvenció municipal]],DespesesProjecte[[#This Row],[Import de l''aportació / Cofinançament de l''organització]])","v":0},null,"I9. Subministraments ",{"$f":"SUM(G107:G109)","v":0},{"$f":"SUM(H107:H109)","v":0},0,null,{"$f":"DespesesProjecte[[#This Row],[Import imputable a la subvenció municipal]]-G106","v":0},{"$f":"DespesesProjecte[[#This Row],[Import de l''aportació / Cofinançament de l''organització]]-H106","v":0},{"$f":"DespesesProjecte[[#This Row],[Import total del projecte]]-I106","v":0}]
[null,null,null,{"$f":"SUM(DespesesProjecte[[#This Row],[Import imputable a la subvenció municipal]],DespesesProjecte[[#This Row],[Import de l''aportació / Cofinançament de l''organització]])","v":0},null,null,null,null,0,null,{"$f":"DespesesProjecte[[#This Row],[Import imputable a la subvenció municipal]]-G107","v":0},{"$f":"DespesesProjecte[[#This Row],[Import de l''aportació / Cofinançament de l''organització]]-H107","v":0},{"$f":"DespesesProjecte[[#This Row],[Import total del projecte]]-I107","v":0}]
[null,null,null,{"$f":"SUM(DespesesProjecte[[#This Row],[Import imputable a la subvenció municipal]],DespesesProjecte[[#This Row],[Import de l''aportació / Cofinançament de l''organització]])","v":0},null,null,null,null,0,null,{"$f":"DespesesProjecte[[#This Row],[Import imputable a la subvenció municipal]]-G108","v":0},{"$f":"DespesesProjecte[[#This Row],[Import de l''aportació / Cofinançament de l''organització]]-H108","v":0},{"$f":"DespesesProjecte[[#This Row],[Import total del projecte]]-I108","v":0}]
[null,null,null,{"$f":"SUM(DespesesProjecte[[#This Row],[Import imputable a la subvenció municipal]],DespesesProjecte[[#This Row],[Import de l''aportació / Cofinançament de l''organització]])","v":0},null,null,null,null,0,null,{"$f":"DespesesProjecte[[#This Row],[Import imputable a la subvenció municipal]]-G109","v":0},{"$f":"DespesesProjecte[[#This Row],[Import de l''aportació / Cofinançament de l''organització]]-H109","v":0},{"$f":"DespesesProjecte[[#This Row],[Import total del projecte]]-I109","v":0}]
["I10. Treball realitzat per altres empreses, parcialment imputables al projecte (neteja, seguretat...)",{"$f":"SUM(B111:B113)","v":0},{"$f":"SUM(C111:C113)","v":0},{"$f":"SUM(DespesesProjecte[[#This Row],[Import imputable a la subvenció municipal]],DespesesProjecte[[#This Row],[Import de l''aportació / Cofinançament de l''organització]])","v":0},null,"I10. Treball realitzat per altres empreses, parcialment imputables al projecte (neteja, seguretat...)",{"$f":"SUM(G111:G113)","v":0},{"$f":"SUM(H111:H113)","v":0},0,null,{"$f":"DespesesProjecte[[#This Row],[Import imputable a la subvenció municipal]]-G110","v":0},{"$f":"DespesesProjecte[[#This Row],[Import de l''aportació / Cofinançament de l''organització]]-H110","v":0},{"$f":"DespesesProjecte[[#This Row],[Import total del projecte]]-I110","v":0}]
[null,null,null,{"$f":"SUM(DespesesProjecte[[#This Row],[Import imputable a la subvenció municipal]],DespesesProjecte[[#This Row],[Import de l''aportació / Cofinançament de l''organització]])","v":0},null,null,null,null,0,null,{"$f":"DespesesProjecte[[#This Row],[Import imputable a la subvenció municipal]]-G111","v":0},{"$f":"DespesesProjecte[[#This Row],[Import de l''aportació / Cofinançament de l''organització]]-H111","v":0},{"$f":"DespesesProjecte[[#This Row],[Import total del projecte]]-I111","v":0}]
[null,null,null,{"$f":"SUM(DespesesProjecte[[#This Row],[Import imputable a la subvenció municipal]],DespesesProjecte[[#This Row],[Import de l''aportació / Cofinançament de l''organització]])","v":0},null,null,null,null,0,null,{"$f":"DespesesProjecte[[#This Row],[Import imputable a la subvenció municipal]]-G112","v":0},{"$f":"DespesesProjecte[[#This Row],[Import de l''aportació / Cofinançament de l''organització]]-H112","v":0},{"$f":"DespesesProjecte[[#This Row],[Import total del projecte]]-I112","v":0}]
[null,null,null,{"$f":"SUM(DespesesProjecte[[#This Row],[Import imputable a la subvenció municipal]],DespesesProjecte[[#This Row],[Import de l''aportació / Cofinançament de l''organització]])","v":0},null,null,null,null,0,null,{"$f":"DespesesProjecte[[#This Row],[Import imputable a la subvenció municipal]]-G113","v":0},{"$f":"DespesesProjecte[[#This Row],[Import de l''aportació / Cofinançament de l''organització]]-H113","v":0},{"$f":"DespesesProjecte[[#This Row],[Import total del projecte]]-I113","v":0}]
["TOTAL DESPESES INDIRECTES (es podran assignar al projecte subvencionable fent sevir un percentatge d’assignació) - Màxim 10% de l’import imputable a la subvenció municipal",{"$f":"SUM(B74,B78,B82,B86,B90,B94,B98,B102,B106,B110)","v":0},{"$f":"SUM(C74,C78,C82,C86,C90,C94,C98,C102,C106,C110)","v":0},{"$f":"SUM(D74,D78,D82,D86,D90,D94,D98,D102,D106,D110)","v":0},null,"TOTAL DESPESES INDIRECTES (es podran assignar al projecte subvencionable fent sevir un percentatge d’assignació) - Màxim 10% de l’import imputable a la subvenció municipal",{"$f":"SUM(G74,G78,G82,G86,G90,G94,G98,G102,G106,G110)","v":0},{"$f":"SUM(H74,H78,H82,H86,H90,H94,H98,H102,H106,H110)","v":0},{"$f":"SUM(I74,I78,I82,I86,I90,I94,I98,I102,I106,I110)","v":0},{"$f":"+IF(G114>G13*0.1,\"ALERTA: Màxim 10% de l'import imputable a la subvenció municipal\", \" \")","v":" "},{"$f":"DespesesProjecte[[#This Row],[Import imputable a la subvenció municipal]]-G114","v":0},{"$f":"DespesesProjecte[[#This Row],[Import de l''aportació / Cofinançament de l''organització]]-H114","v":0},{"$f":"DespesesProjecte[[#This Row],[Import total del projecte]]-I114","v":0}]
["TOTAL DE DESPESES PREVISTES",{"$f":"SUM(B114,B73)","v":0},{"$f":"SUM(C114,C73)","v":0},{"$f":"SUM(D114,D73)","v":0},null,"TOTAL DE DESPESES PREVISTES",{"$f":"SUM(G114,G73)","v":0},{"$f":"SUM(H114,H73)","v":0},{"$f":"SUM(I114,I73)","v":0},null,{"$f":"DespesesProjecte[[#This Row],[Import imputable a la subvenció municipal]]-G115","v":0},{"$f":"DespesesProjecte[[#This Row],[Import de l''aportació / Cofinançament de l''organització]]-H115","v":0},{"$f":"DespesesProjecte[[#This Row],[Import total del projecte]]-I115","v":0}]
[]
[]
["Modalitat Bb. Creació i/o enfortiment d’ecosistemes cooperatius i clústers d’ESS mitjançant accions d’intercooperació, vinculades a l’Estratègia #ESSBCN2030 i als objectius estratègics del PIESS 2024-2027"]
["1. La quantia de la subvenció atorgada no superarà el 80% de la despesa total del projecte a subvencionar. "]
["2. L'import màxim de subvenció per a aquesta modalitat Bb de l'àmbit temàtic d' Intercooperació (B) és 30.000€."]
["3. En el cas que la sol·licitud presentada sobrepassi l’import màxim, es considerarà com a import sol·licitat el màxim de l'establert a la convocatòria."]
["4. En aquesta modalitat s'acceptarà la imputació de despeses de personal propi i directament vinculat al projecte de les organitzacions participants de l'acord d'intercooperació"]
["5. Es limita amb un màxim del 25% l'import de la subvenció per  a despeses de personal propi assignat directament al projecte subvencionat (règim general o socis/es cooperativistes en règim d’autònoms-), i un 80% per a nòmines i seguretat social d’estudiants en pràctiques (sou brut corresponent al període de l’execució de la subvenció) - excepte si la seguretat social està bonificada."]
["6. En el cas de lloguers d’immobles les despeses de lloguer s’imputaran a les despeses indirectes amb el límit establert per aquestes despeses indirectes."]
["7. Per a les subvencions atorgades per import igual o superior a 20.000 € és necessari un informe d'auditoria per a la justificació. L'import d'aquest informe es considera despesa subvencionable, amb un límit màxim de 1.500€."]
["8. Són imputables en aquesta modalitat les despeses indirectes, detallades en l’apartat 13.3. de les bases reguladores; amb un màxim del 10% de l'import de la subvenció. \n"]
["9. Quan s'hagi de fer despeses de més de 12.000 €, sense IVA, en el cas de prestacions de serveis o lliurament de béns,  s'hauran d'incorporar tres pressupostos sol·licitats i argumentar el motiu de l'adjudicació en el cas de no ser la proposta més avantatjosa econòmicament."]
["10. No seran elegibles factures d'empreses emeses entre les organitzacions participants de l'acord d'intercooperació"]
["11. En cap cas es consideraran despeses subvencionables:\n> Els impostos indirectes quan siguin susceptibles de recuperació o compensació.\n> Les despeses d'inversió, incloses les adquisicions de béns mobles.\n> Les despeses realitzades amb data anterior a l'inici del projecte i data posterior a la finalització del projecte.\n> Altres despeses que s'indiquin a la convocatòria."]
["12. La retribució de les persones contractades en el marc del projecte subvencionat no pot ser inferior al Salari Mínim Interprofessional (SMI), ni a l'estipulada al corresponent conveni o marc normatiu de referència (punt 7 de les bases 2024: requisits dels projectes). "]
["13. Els materials produïts de difusió, estudis, informes o materials didàctics utilitzats, etc. en el cas de tractar-se de despesa elegible de la subvenció, hauran de tenir llicència Creative Commons -Compartir Igual- (share a like)  i no podrà tenir la condició –Sense Obres Derivades- (no derivate Works)."]
["14. Els projectes subvencionats han de fomentar activitats d'interès públic o social, les quals han de ser gratuïtes per a les persones participants o en cap cas el preu ha de suposar un obstacle per a la seva participació, buscant altres formes d'accés per a persones amb dificultats econòmiques. En el cas que hi hagi algun tipus de lucre, haurà de revertir en les pròpies activitats subvencionades."]
["15. L'Ajuntament de Barcelona i les seves entitats municipals en cap cas subvencionaran el mateix projecte, executat durant el mateix període, per cap altre procediment de concessió que no sigui el regulat per les bases reguladores."]
["16. El/la beneficiari/ària no podrà alterar en cap cas el destí de les subvencions concedides."]
["17. L'organització designada com a representant de l'agrupació serà plenament responsable del projecte davant l'Ajuntament respecte al compliment de les obligacions establertes en les bases reguladores, sense perjudici de la responsabilitat de les altres organitzacions sòcies de l'agrupació, tot sent-li d'aplicació els requisits previstos al punt 6.1 de les bases reguladores. "]
["18. En cap cas podran formar part de l'agrupació les organitzacions que hagin rebut altres subvencions per a l'execució del mateix projecte d'altres administracions públiques."]
["19. El programa de pràctiques de l’alumne/a ha de ser d’una durada mínima de 400 hores o superior."]
["20. Només pot presentar-se una sol·licitud per un lloc de pràctiques per organització sol·licitant."]
["21. Caldrà remunerar l’alumne/a en pràctiques universitàries (curriculars o extracurriculars) amb un cost brut hora mínim de 6€/hora o superior."]
["22. Caldrà remunerar l’alumne/a segons la modalitat d’FP dual escollida com a mínim d’acord amb la normativa específica que estableix el Departament d’Educació de la Generalitat de Catalunya o superior. "]

{"sheet":"Resum Pressupost","index":2,"n_rows":32,"n_cols":11,"rows_kept":32,"cut":false,"hidden":false,"merged":[[1,2,1,7],[5,0,5,1],[3,0,3,8],[6,2,7,2],[6,0,7,1],[6,8,7,8],[6,6,7,7],[6,4,7,4],[6,3,7,3],[21,1,22,1],[6,9,7,9],[19,6,19,7],[25,7,25,9],[21,2,22,2],[21,3,22,3],[21,4,22,4]]}
[]
[null,null,"Resum pressupost Modalitat Bb"]
[]
["Subvencions de l'Ajuntament de Barcelona per l'enfortiment de l'Economia Social i Solidària i per la intercooperació en l'Estratègia #ESSBCN2030 - ENFORTIM L’ESS 2024",null,null,null,null,null,null,null,null,"MODALITAT Bb"]
[]
["DESPESES PREVISTES",null,null,null,null,null,"INGRESSOS PREVISTOS"]
["Despeses directes \n(aquelles que s'identifiquen directament amb el projecte)",null,"Previsió inicial cost total","Previsió reformulada cost total","Import imputat a la subvenció atorgada",null,"Ingressos previstos",null,"Previsió inicial ingrés total","Previsió reformulada ingrés total"]
[]
["Bb","D1. Nòmines i seguretat social IRPF (règim general o socis/es cooperativistes en règim d’autònoms) del personal propi vinculat al projecte subvencionable (màxim 25% import subvenció)",{"$f":"+'Reformulació Pressupost Bb'!D23","v":0},{"$f":"+'Reformulació Pressupost Bb'!I23","v":0},{"$f":"+'Reformulació Pressupost Bb'!G23","v":0},{"$f":"+IF(D9<0,\"No s'admeten valors negatius\",\"\")","v":""},"A.","Subvenció municipal (import sol·licitat a la instància/atorgat)",{"$f":"'Reformulació Pressupost Bb'!B13","v":0},{"$f":"'Reformulació Pressupost Bb'!G13","v":0}]
[null,"D2. Nòmines i seguretat social d’estudiants en pràctiques (amb un límit del 80% del seu sou brut corresponent al període de l’execució de la subvenció) - excepte si la seguretat social està bonificada",{"$f":"+'Reformulació Pressupost Bb'!D27","v":0},{"$f":"+'Reformulació Pressupost Bb'!I27","v":0},{"$f":"+'Reformulació Pressupost Bb'!G27","v":0},null,"B.","Subvencions d'altres administracions",null,null,{"$f":"+IF(J10<0,\"No s'admeten valors negatius\",\"\")","v":""}]
[null,"D3. Treballs realitzats per professionals i empreses externes directament vinculades al projecte",{"$f":"+'Reformulació Pressupost Bb'!D32","v":0},{"$f":"+'Reformulació Pressupost Bb'!I32","v":0},{"$f":"+'Reformulació Pressupost Bb'!G32","v":0},{"$f":"+IF(D10<0,\"No s'admeten valors negatius\",\"\")","v":""},"C.","Subvencions d'ens privats",null,null,""]
[null,"D4. Adquisició de materials i béns consumibles íntegrament imputables al projecte ",{"$f":"+'Reformulació Pressupost Bb'!D36","v":0},{"$f":"+'Reformulació Pressupost Bb'!I36","v":0},{"$f":"+'Reformulació Pressupost Bb'!G36","v":0},null,"D.","Recursos propis de l'organització aplicats al projecte"]
[null,"D5. Transport – missatgeria imputables al projecte",{"$f":"+'Reformulació Pressupost Bb'!D40","v":0},{"$f":"+'Reformulació Pressupost Bb'!I40","v":0},{"$f":"+'Reformulació Pressupost Bb'!G40","v":0},null,"E.","Taquillatge"]
[null,"D6. Publicitat i propaganda de les activitats directament vinculades al projecte",{"$f":"+'Reformulació Pressupost Bb'!D44","v":0},{"$f":"+'Reformulació Pressupost Bb'!I44","v":0},{"$f":"+'Reformulació Pressupost Bb'!G44","v":0},null,"F.","Quotes d'inscripció"]
[null,"D7. Allotjament i dietes, del personal contractat i voluntari, vinculats al projecte",{"$f":"+'Reformulació Pressupost Bb'!D48","v":0},{"$f":"+'Reformulació Pressupost Bb'!I48","v":0},{"$f":"+'Reformulació Pressupost Bb'!G48","v":0},null,"G.","Venda de Productes"]
[null,"D8. Ajuts al transport per als/les participants dels projectes en cas que sigui necessari de manera justificada",{"$f":"+'Reformulació Pressupost Bb'!D52","v":0},{"$f":"+'Reformulació Pressupost Bb'!I52","v":0},{"$f":"+'Reformulació Pressupost Bb'!G52","v":0},null,"H","Publicitat i/o Esponsorització"]
[null,"D9. Viatges i desplaçaments imputables a les activitats del projecte",{"$f":"+'Reformulació Pressupost Bb'!D56","v":0},{"$f":"+'Reformulació Pressupost Bb'!I56","v":0},{"$f":"+'Reformulació Pressupost Bb'!G56","v":0},null,"I.","Altres ingressos"]
[null,"D10. Tributs, quan siguin abonats directament per la persona jurídica o física beneficiària",{"$f":"+'Reformulació Pressupost Bb'!D60","v":0},{"$f":"+'Reformulació Pressupost Bb'!I60","v":0},{"$f":"+'Reformulació Pressupost Bb'!G60","v":0},null,null,"Total Ingressos",{"$f":"SUM(I9:I17)","v":0},{"$f":"SUM(J9:J17)","v":0}]
[null,"D11. Despeses de l'informe d'auditoria (màxim 1.500€ subvenció)",{"$f":"+'Reformulació Pressupost Bb'!D64","v":0},{"$f":"+'Reformulació Pressupost Bb'!I64","v":0},{"$f":"+'Reformulació Pressupost Bb'!G64","v":0}]
[null,"D12. Altres despeses que de manera justificada i per la tipologia del projecte puguin imputar-se directament al projecte",{"$f":"+'Reformulació Pressupost Bb'!D68","v":0},{"$f":"+'Reformulació Pressupost Bb'!I68","v":0},{"$f":"+'Reformulació Pressupost Bb'!G68","v":0},null,"Ingressos menys despeses ",null,{"$f":"+I18-C28","v":0},{"$f":"+J18-D28","v":0}]
[null,"Total Despeses Directes   ",{"$f":"SUM(C9:C20)","v":0},{"$f":"SUM(D9:D20)","v":0},{"$f":"SUM(E9:E20)","v":0}]
[null,"Despeses indirectes (es podran assignar al projecte fent sevir un percentatge d’assignació) ","Previsió inicial cost total","Previsió reformulada cost total","Import imputat a la subvenció atorgada"]
[null,null,null,null,null,null,null,null,"% subvencionat inicialment",{"$f":"I9/C28","v":{"$error":"#DIV/0!"}}]
[]
[null,null,null,null,null,null,null,null,"% subvencionat després de reformular",{"$f":"+J9/D28","v":{"$error":"#DIV/0!"}}]
[null,null,null,null,null,null,null,"*Aquest percentatge ha de ser igual o menor al percentatge subvencionat inicialment."]
[null,"Total Despeses Indirectes   (Màx. 10% subv)",{"$f":"SUM(C24:C26)","v":0},{"$f":"SUM(D24:D26)","v":0},{"$f":"SUM(E24:E26)","v":0},{"$f":"+IF(D26<0,\"No s'admeten valors negatius\",\"\")","v":""}]
[null,"Total Despeses ",{"$f":"+C21+C27","v":0},{"$f":"+D21+D27","v":0},{"$f":"+E21+E27","v":0}]
[]
[]
[]
[null,null,null,null,null,null,null,null,null,null,"*"]